[Event "*** Titled Tuesday Blitz"]
[Site "Chess.com"]
[Date "2021.03.02"]
[Round "1"]
[White "tk22h"]
[Black "Abund"]
[Result "0-1"]
[WhiteElo "2352"]
[BlackElo "2674"]
[TimeControl "180+1"]
[EndTime "10:06:57 PST"]
[Termination "Abund won by resignation"]

1. c4 {[%clk 0:02:55]} 1... Nf6 {[%clk 0:02:59.5]} 2. Nc3 {[%clk 0:02:54.2]}
2... g6 {[%clk 0:02:59.8]} 3. e4 {[%clk 0:02:50.6]} 3... e5 {[%clk 0:02:59.3]}
4. Nf3 {[%clk 0:02:48.8]} 4... Nc6 {[%clk 0:02:59]} 5. d4 {[%clk 0:02:48.6]}
5... exd4 {[%clk 0:02:46.4]} 6. Nxd4 {[%clk 0:02:49.5]} 6... Bg7 {[%clk
0:02:44.7]} 7. Be3 {[%clk 0:02:49.1]} 7... d6 {[%clk 0:02:36]} 8. Be2 {[%clk
0:02:46.4]} 8... O-O {[%clk 0:02:33.4]} 9. O-O {[%clk 0:02:45.5]} 9... Re8
{[%clk 0:02:24.8]} 10. f3 {[%clk 0:02:44.3]} 10... Ne5 {[%clk 0:02:19.8]} 11.
Qd2 {[%clk 0:02:43.4]} 11... c6 {[%clk 0:02:14]} 12. Rad1 {[%clk 0:02:35.3]}
12... Qc7 {[%clk 0:02:11]} 13. Rfe1 {[%clk 0:02:33.1]} 13... a6 {[%clk 0:02:08]}
14. Bf1 {[%clk 0:02:32.9]} 14... b5 {[%clk 0:02:05.4]} 15. cxb5 {[%clk
0:02:22.2]} 15... axb5 {[%clk 0:02:06.3]} 16. a3 {[%clk 0:02:22]} 16... Bb7
{[%clk 0:01:45.8]} 17. Bf2 {[%clk 0:02:20]} 17... Nc4 {[%clk 0:01:43.4]} 18.
Bxc4 {[%clk 0:02:19.1]} 18... bxc4 {[%clk 0:01:44.3]} 19. Nc2 {[%clk 0:02:14.5]}
19... Rad8 {[%clk 0:01:36.3]} 20. Bg3 {[%clk 0:02:13.7]} 20... Qb6+ {[%clk
0:01:31.6]} 21. Ne3 {[%clk 0:02:12.5]} 21... d5 {[%clk 0:01:29.4]} 22. Bf2
{[%clk 0:01:54.7]} 22... dxe4 {[%clk 0:01:20.5]} 23. Nxc4 {[%clk 0:01:54.6]}
23... Rxd2 {[%clk 0:00:51.3]} 24. Bxb6 {[%clk 0:01:41.1]} 24... Rxd1 {[%clk
0:00:48.3]} 25. Rxd1 {[%clk 0:01:40.8]} 25... exf3 {[%clk 0:00:48.1]} 26. gxf3
{[%clk 0:01:41.2]} 26... Nd5 {[%clk 0:00:43.8]} 27. Bd4 {[%clk 0:01:32.7]} 27...
Bf8 {[%clk 0:00:38.5]} 28. Nxd5 {[%clk 0:01:18.5]} 28... cxd5 {[%clk 0:00:38.2]}
29. Ne3 {[%clk 0:01:18]} 29... h5 {[%clk 0:00:29.9]} 30. Kf2 {[%clk 0:01:17.2]}
30... Bd6 {[%clk 0:00:29.4]} 31. Nf1 {[%clk 0:01:07.3]} 31... Ba6 {[%clk
0:00:25.7]} 32. Bc3 {[%clk 0:00:48.8]} 32... Re2+ {[%clk 0:00:21.2]} 33. Kg1
{[%clk 0:00:48.8]} 33... Bc5+ {[%clk 0:00:19.4]} 34. Kh1 {[%clk 0:00:48]} 34...
Rf2 {[%clk 0:00:18]} 35. Ng3 {[%clk 0:00:41]} 35... h4 {[%clk 0:00:15.9]} 36.
Be1 {[%clk 0:00:36.6]} 36... hxg3 {[%clk 0:00:14.1]} 37. Bxf2 {[%clk 0:00:36.4]}
37... gxf2 {[%clk 0:00:15]} 38. Kg2 {[%clk 0:00:36]} 38... f1=Q+ {[%clk
0:00:14.9]} 39. Rxf1 {[%clk 0:00:36]} 39... Bxf1+ {[%clk 0:00:15.8]} 40. Kxf1
{[%clk 0:00:36.2]} 40... Kf8 {[%clk 0:00:16.4]} 0-1

[Event "*** Titled Tuesday Blitz"]
[Site "Chess.com"]
[Date "2021.03.02"]
[Round "1"]
[White "Vandros57"]
[Black "Skat2704"]
[Result "0-1"]
[WhiteElo "2247"]
[BlackElo "2557"]
[TimeControl "180+1"]
[EndTime "10:06:57 PST"]
[Termination "Skat2704 won on time"]

1. d4 {[%clk 0:02:58.2]} 1... d5 {[%clk 0:02:59.9]} 2. Nf3 {[%clk 0:02:57]} 2...
Nf6 {[%clk 0:02:59.7]} 3. c4 {[%clk 0:02:56.1]} 3... e6 {[%clk 0:03:00.1]} 4.
Nc3 {[%clk 0:02:54.2]} 4... Be7 {[%clk 0:03:00.1]} 5. Bg5 {[%clk 0:02:52.5]}
5... O-O {[%clk 0:02:59.4]} 6. e3 {[%clk 0:02:51.4]} 6... h6 {[%clk 0:02:59.6]}
7. Bxf6 {[%clk 0:02:48.5]} 7... Bxf6 {[%clk 0:03:00.5]} 8. Rc1 {[%clk 0:02:46]}
8... b6 {[%clk 0:03:00]} 9. Bd3 {[%clk 0:02:39.5]} 9... Bb7 {[%clk 0:02:59.7]}
10. O-O {[%clk 0:02:34.2]} 10... c5 {[%clk 0:02:59.8]} 11. cxd5 {[%clk
0:02:29.5]} 11... exd5 {[%clk 0:02:59.6]} 12. dxc5 {[%clk 0:02:28.1]} 12... bxc5
{[%clk 0:02:59.3]} 13. Na4 {[%clk 0:02:19.8]} 13... c4 {[%clk 0:02:51.4]} 14.
Bb1 {[%clk 0:02:12.5]} 14... Na6 {[%clk 0:02:48.8]} 15. Nc3 {[%clk 0:01:58.1]}
15... Qa5 {[%clk 0:02:40.4]} 16. Nd4 {[%clk 0:01:51.1]} 16... Rfd8 {[%clk
0:02:36.4]} 17. Nf5 {[%clk 0:01:44.8]} 17... Nc5 {[%clk 0:01:46.7]} 18. Qg4
{[%clk 0:01:42]} 18... Kf8 {[%clk 0:01:44.1]} 19. h4 {[%clk 0:01:25.2]} 19...
Ne6 {[%clk 0:01:38.4]} 20. h5 {[%clk 0:01:17]} 20... d4 {[%clk 0:01:38]} 21.
Nxd4 {[%clk 0:01:10.5]} 21... Nxd4 {[%clk 0:01:37.3]} 22. exd4 {[%clk
0:01:09.7]} 22... Rxd4 {[%clk 0:01:37.2]} 23. Qf5 {[%clk 0:00:58.8]} 23... Qxf5
{[%clk 0:01:25.9]} 24. Bxf5 {[%clk 0:00:57.6]} 24... Rf4 {[%clk 0:01:25.6]} 25.
Bc2 {[%clk 0:00:46.4]} 25... Rg4 {[%clk 0:01:20.7]} 26. f3 {[%clk 0:00:38.6]}
26... Rh4 {[%clk 0:01:16.4]} 27. Ne2 {[%clk 0:00:33.8]} 27... Rxh5 {[%clk
0:01:14.1]} 28. Be4 {[%clk 0:00:25.6]} 28... Bxe4 {[%clk 0:01:07.4]} 29. fxe4
{[%clk 0:00:25.1]} 29... Rc5 {[%clk 0:01:07.5]} 30. Nf4 {[%clk 0:00:18]} 30...
Re8 {[%clk 0:00:49.8]} 31. Rc2 {[%clk 0:00:08.5]} 31... Rxe4 {[%clk 0:00:47.1]}
32. g3 {[%clk 0:00:05.1]} 32... Kg8 {[%clk 0:00:42.8]} 33. Kg2 {[%clk
0:00:05.1]} 33... Bg5 {[%clk 0:00:41.8]} 34. Rfc1 {[%clk 0:00:04.6]} 34... Bxf4
{[%clk 0:00:41.3]} 35. Kf3 {[%clk 0:00:04]} 35... Bxc1 {[%clk 0:00:39.6]} 36.
Kxe4 {[%clk 0:00:02.7]} 36... Bg5 {[%clk 0:00:38.9]} 0-1

[Event "*** Titled Tuesday Blitz"]
[Site "Chess.com"]
[Date "2021.03.02"]
[Round "1"]
[White "Steven_Rojas"]
[Black "kuban1991"]
[Result "0-1"]
[WhiteElo "2462"]
[BlackElo "2939"]
[TimeControl "180+1"]
[EndTime "10:06:58 PST"]
[Termination "kuban1991 won by resignation"]

1. c4 {[%clk 0:03:00.9]} 1... g6 {[%clk 0:03:00]} 2. g3 {[%clk 0:02:57.4]} 2...
Bg7 {[%clk 0:03:00.9]} 3. Bg2 {[%clk 0:02:57.8]} 3... c5 {[%clk 0:03:01.6]} 4.
Nc3 {[%clk 0:02:55.6]} 4... Nc6 {[%clk 0:03:01.5]} 5. Nf3 {[%clk 0:02:54.1]}
5... e6 {[%clk 0:03:01.4]} 6. O-O {[%clk 0:02:47.6]} 6... Nge7 {[%clk
0:03:00.8]} 7. d4 {[%clk 0:02:47.2]} 7... cxd4 {[%clk 0:03:00.9]} 8. Nb5 {[%clk
0:02:47.3]} 8... Nf5 {[%clk 0:02:57]} 9. g4 {[%clk 0:02:22.7]} 9... a6 {[%clk
0:02:54.5]} 10. Na3 {[%clk 0:02:05.6]} 10... Nh4 {[%clk 0:02:50.3]} 11. Nxh4
{[%clk 0:01:49.6]} 11... Qxh4 {[%clk 0:02:51.2]} 12. h3 {[%clk 0:01:43.2]} 12...
f5 {[%clk 0:02:41.1]} 13. e3 {[%clk 0:01:35.6]} 13... fxg4 {[%clk 0:02:37.9]}
14. hxg4 {[%clk 0:01:34]} 14... h5 {[%clk 0:02:33.8]} 15. g5 {[%clk 0:01:25.4]}
15... O-O {[%clk 0:02:19.3]} 16. Nc2 {[%clk 0:01:20.9]} 16... Qxg5 {[%clk
0:02:04.5]} 17. exd4 {[%clk 0:01:18.6]} 17... Qh4 {[%clk 0:02:04.6]} 18. d5
{[%clk 0:01:12.4]} 18... Ne5 {[%clk 0:02:02.7]} 19. Ne3 {[%clk 0:01:10.7]} 19...
Bh6 {[%clk 0:01:45.7]} 20. dxe6 {[%clk 0:01:02.5]} 20... dxe6 {[%clk 0:01:41.3]}
21. Qd6 {[%clk 0:01:01.3]} 21... Bf4 {[%clk 0:01:35.9]} 22. Qxf8+ {[%clk
0:00:34.5]} 22... Kxf8 {[%clk 0:01:35.3]} 23. Rd1 {[%clk 0:00:35.4]} 23... Bd7
{[%clk 0:01:21.7]} 24. Bxb7 {[%clk 0:00:29.6]} 24... Bxe3 {[%clk 0:01:22]} 25.
Bxe3 {[%clk 0:00:29.2]} 25... Rb8 {[%clk 0:01:20.9]} 26. Bg2 {[%clk 0:00:22.3]}
26... Bc6 {[%clk 0:01:20.2]} 27. Rd4 {[%clk 0:00:21.4]} 27... Qe7 {[%clk
0:01:00.6]} 28. Rf4+ {[%clk 0:00:08.8]} 28... Kg8 {[%clk 0:00:59.9]} 29. Bh3
{[%clk 0:00:07.3]} 29... Rf8 {[%clk 0:00:55.5]} 30. Rd1 {[%clk 0:00:05.7]} 30...
Nf3+ {[%clk 0:00:53.9]} 31. Kf1 {[%clk 0:00:05.5]} 31... Rxf4 {[%clk 0:00:52.6]}
32. Bxf4 {[%clk 0:00:06.4]} 32... Qf6 {[%clk 0:00:49.9]} 33. Be3 {[%clk
0:00:05.1]} 33... Nh2+ {[%clk 0:00:49.7]} 34. Ke1 {[%clk 0:00:04.4]} 34... Ng4
{[%clk 0:00:50.6]} 35. Bc5 {[%clk 0:00:03.4]} 35... Qe5+ {[%clk 0:00:45.2]} 36.
Kf1 {[%clk 0:00:02.2]} 36... Qxc5 {[%clk 0:00:40.6]} 37. Bxg4 {[%clk 0:00:02.2]}
37... hxg4 {[%clk 0:00:39.7]} 38. Rd5 {[%clk 0:00:02.9]} 38... Qxc4+ {[%clk
0:00:39.3]} 0-1

[Event "*** Titled Tuesday Blitz"]
[Site "Chess.com"]
[Date "2021.03.02"]
[Round "1"]
[White "MITerryble"]
[Black "HackingKid98"]
[Result "1-0"]
[WhiteElo "2932"]
[BlackElo "2459"]
[TimeControl "180+1"]
[EndTime "10:06:59 PST"]
[Termination "MITerryble won on time"]

1. e4 {[%clk 0:02:58.9]} 1... c6 {[%clk 0:02:59.6]} 2. Nf3 {[%clk 0:02:58.6]}
2... d5 {[%clk 0:03:00.5]} 3. exd5 {[%clk 0:02:58.7]} 3... cxd5 {[%clk
0:03:00.2]} 4. Ne5 {[%clk 0:02:59.2]} 4... Nf6 {[%clk 0:02:53.4]} 5. d4 {[%clk
0:02:59.1]} 5... Bf5 {[%clk 0:02:41.6]} 6. c3 {[%clk 0:02:50.5]} 6... e6 {[%clk
0:02:39.8]} 7. g4 {[%clk 0:02:40.8]} 7... Be4 {[%clk 0:02:35.1]} 8. f3 {[%clk
0:02:40.6]} 8... Bxb1 {[%clk 0:02:21.2]} 9. Rxb1 {[%clk 0:02:41.5]} 9... Nfd7
{[%clk 0:02:18.9]} 10. Nd3 {[%clk 0:01:54.6]} 10... Nc6 {[%clk 0:02:06.6]} 11.
Bf4 {[%clk 0:01:53.3]} 11... Be7 {[%clk 0:02:00.7]} 12. Be2 {[%clk 0:01:50.8]}
12... Bh4+ {[%clk 0:01:55]} 13. Kf1 {[%clk 0:01:50.7]} 13... O-O {[%clk
0:01:47.3]} 14. Kg2 {[%clk 0:01:50.6]} 14... Re8 {[%clk 0:01:36.6]} 15. Bg3
{[%clk 0:01:48]} 15... Bxg3 {[%clk 0:01:23.9]} 16. hxg3 {[%clk 0:01:47.8]} 16...
e5 {[%clk 0:01:24.8]} 17. dxe5 {[%clk 0:01:47]} 17... Ndxe5 {[%clk 0:01:13.1]}
18. Nf4 {[%clk 0:01:13.9]} 18... d4 {[%clk 0:01:09.4]} 19. c4 {[%clk 0:01:12.2]}
19... Qd6 {[%clk 0:00:25.2]} 20. Nd5 {[%clk 0:01:06.8]} 20... Rad8 {[%clk
0:00:23.7]} 21. f4 {[%clk 0:01:01.8]} 21... Nd7 {[%clk 0:00:17.5]} 22. Bf3
{[%clk 0:01:01.4]} 22... Nf6 {[%clk 0:00:13.4]} 23. Qd3 {[%clk 0:00:54.9]} 23...
g6 {[%clk 0:00:12.8]} 24. c5 {[%clk 0:00:43.6]} 24... Qe6 {[%clk 0:00:04.7]} 25.
Rbe1 {[%clk 0:00:43.5]} 25... Qxd5 {[%clk 0:00:04.7]} 26. Bxd5 {[%clk
0:00:41.3]} 26... Nxd5 {[%clk 0:00:05.6]} 27. Rxe8+ {[%clk 0:00:33.6]} 27...
Rxe8 {[%clk 0:00:06.5]} 28. Qb3 {[%clk 0:00:33.7]} 28... Ne3+ {[%clk 0:00:05.5]}
29. Kh3 {[%clk 0:00:30.8]} 29... Rd8 {[%clk 0:00:05.4]} 30. Qxb7 {[%clk
0:00:20]} 1-0

[Event "*** Titled Tuesday Blitz"]
[Site "Chess.com"]
[Date "2021.03.02"]
[Round "1"]
[White "Eltaj_Safarli"]
[Black "guillembaches"]
[Result "1-0"]
[WhiteElo "2913"]
[BlackElo "2456"]
[TimeControl "180+1"]
[EndTime "10:06:59 PST"]
[Termination "Eltaj_Safarli won on time"]

1. e4 {[%clk 0:03:00.9]} 1... c5 {[%clk 0:03:00]} 2. Nc3 {[%clk 0:03:00.4]} 2...
Nc6 {[%clk 0:02:59.4]} 3. Bb5 {[%clk 0:02:59.8]} 3... e6 {[%clk 0:02:57.5]} 4.
Bxc6 {[%clk 0:02:59.6]} 4... bxc6 {[%clk 0:02:57.4]} 5. d3 {[%clk 0:03:00.5]}
5... d5 {[%clk 0:02:57.6]} 6. f4 {[%clk 0:03:01.4]} 6... Nf6 {[%clk 0:02:57.6]}
7. Nf3 {[%clk 0:03:00.7]} 7... c4 {[%clk 0:02:56.8]} 8. e5 {[%clk 0:02:59.6]}
8... Nd7 {[%clk 0:02:53.4]} 9. dxc4 {[%clk 0:02:59.9]} 9... Ba6 {[%clk
0:02:53.1]} 10. O-O {[%clk 0:02:43.4]} 10... Bxc4 {[%clk 0:02:48.1]} 11. Re1
{[%clk 0:02:43.9]} 11... Bc5+ {[%clk 0:02:37.9]} 12. Kh1 {[%clk 0:02:43.4]}
12... O-O {[%clk 0:02:37.8]} 13. b3 {[%clk 0:02:42.7]} 13... Ba6 {[%clk
0:02:35.9]} 14. Na4 {[%clk 0:02:34.3]} 14... Bf2 {[%clk 0:02:31.8]} 15. Be3
{[%clk 0:02:30]} 15... Bxe1 {[%clk 0:02:25.6]} 16. Qxe1 {[%clk 0:02:30.9]} 16...
f6 {[%clk 0:02:10.2]} 17. Nc5 {[%clk 0:02:30]} 17... Nxc5 {[%clk 0:02:04]} 18.
Bxc5 {[%clk 0:02:30.9]} 18... Rf7 {[%clk 0:01:59.9]} 19. Nd4 {[%clk 0:02:30.7]}
19... Qd7 {[%clk 0:01:52.5]} 20. f5 {[%clk 0:02:27.8]} 20... Re8 {[%clk
0:01:45.7]} 21. fxe6 {[%clk 0:02:25.1]} 21... Rxe6 {[%clk 0:01:44.7]} 22. Nxe6
{[%clk 0:02:24.8]} 22... Qxe6 {[%clk 0:01:44.9]} 23. exf6 {[%clk 0:02:22.5]}
23... Qxe1+ {[%clk 0:01:32.5]} 24. Rxe1 {[%clk 0:02:23.4]} 24... Rxf6 {[%clk
0:01:32.2]} 25. Kg1 {[%clk 0:02:22.2]} 25... Kf7 {[%clk 0:01:27.8]} 26. Re7+
{[%clk 0:02:16.3]} 26... Kg6 {[%clk 0:01:27.7]} 27. h3 {[%clk 0:02:14.5]} 27...
Rf1+ {[%clk 0:01:21.5]} 28. Kh2 {[%clk 0:02:14.3]} 28... Rc1 {[%clk 0:01:21.4]}
29. Rxa7 {[%clk 0:02:06.6]} 29... Rxc2 {[%clk 0:01:16]} 30. Rxa6 {[%clk
0:01:48.8]} 30... Rxc5 {[%clk 0:01:14]} 31. b4 {[%clk 0:01:49.7]} 31... Rb5
{[%clk 0:01:06.1]} 32. Rxc6+ {[%clk 0:01:49.1]} 32... Kf5 {[%clk 0:01:06.3]} 33.
a3 {[%clk 0:01:49.2]} 33... d4 {[%clk 0:00:58.4]} 34. Kg1 {[%clk 0:01:35.2]}
34... Ke4 {[%clk 0:00:54.7]} 35. Kf2 {[%clk 0:01:35]} 35... Kd3 {[%clk 0:00:54]}
36. Rc7 {[%clk 0:01:28.1]} 36... Rf5+ {[%clk 0:00:49.7]} 37. Kg3 {[%clk
0:01:28]} 37... Rg5+ {[%clk 0:00:41.7]} 38. Kf3 {[%clk 0:01:22]} 38... Kd2
{[%clk 0:00:19.8]} 39. a4 {[%clk 0:01:22.4]} 39... d3 {[%clk 0:00:17.5]} 40. b5
{[%clk 0:01:22.9]} 40... Rf5+ {[%clk 0:00:12.8]} 41. Ke4 {[%clk 0:01:16.2]}
41... g6 {[%clk 0:00:07.9]} 42. b6 {[%clk 0:01:13.3]} 42... Ke2 {[%clk
0:00:05.2]} 43. b7 {[%clk 0:01:10]} 43... d2 {[%clk 0:00:05.4]} 44. Rc2 {[%clk
0:00:56.7]} 44... Ke1 {[%clk 0:00:05]} 45. Rxd2 {[%clk 0:00:54.5]} 1-0

[Event "*** Titled Tuesday Blitz"]
[Site "Chess.com"]
[Date "2021.03.02"]
[Round "1"]
[White "Eloist"]
[Black "Goryachkina"]
[Result "0-1"]
[WhiteElo "2351"]
[BlackElo "2673"]
[TimeControl "180+1"]
[EndTime "10:06:59 PST"]
[Termination "Goryachkina won on time"]

1. e4 {[%clk 0:03:00.4]} 1... c6 {[%clk 0:03:00.2]} 2. Nf3 {[%clk 0:02:59.4]}
2... d5 {[%clk 0:03:00.4]} 3. Nc3 {[%clk 0:02:59.7]} 3... dxe4 {[%clk
0:03:00.7]} 4. Nxe4 {[%clk 0:02:59.6]} 4... Nf6 {[%clk 0:03:01.1]} 5. Qe2 {[%clk
0:02:58.7]} 5... Nxe4 {[%clk 0:03:01.3]} 6. Qxe4 {[%clk 0:02:58.6]} 6... Qa5
{[%clk 0:03:01.5]} 7. Bc4 {[%clk 0:02:47.7]} 7... Bf5 {[%clk 0:02:59.7]} 8. Qe5
{[%clk 0:02:41.5]} 8... Qxe5+ {[%clk 0:02:52.5]} 9. Nxe5 {[%clk 0:02:41.4]} 9...
e6 {[%clk 0:02:50.4]} 10. d3 {[%clk 0:02:38]} 10... Bd6 {[%clk 0:02:48.4]} 11.
f4 {[%clk 0:02:13.1]} 11... h6 {[%clk 0:02:46]} 12. O-O {[%clk 0:02:06.6]} 12...
Nd7 {[%clk 0:02:37.8]} 13. Nxd7 {[%clk 0:01:57]} 13... Kxd7 {[%clk 0:02:37.7]}
14. Bd2 {[%clk 0:01:52.9]} 14... g5 {[%clk 0:02:16.3]} 15. Bc3 {[%clk
0:01:24.7]} 15... Rhg8 {[%clk 0:02:15.5]} 16. fxg5 {[%clk 0:01:11.1]} 16... hxg5
{[%clk 0:02:15.7]} 17. Rae1 {[%clk 0:01:06.7]} 17... g4 {[%clk 0:01:56.7]} 18.
Be5 {[%clk 0:00:56.5]} 18... Bxe5 {[%clk 0:01:45]} 19. Rxe5 {[%clk 0:00:57.4]}
19... Rg7 {[%clk 0:01:43.3]} 20. c3 {[%clk 0:00:49.4]} 20... Rh8 {[%clk
0:01:40.2]} 21. g3 {[%clk 0:00:35.8]} 21... Rgh7 {[%clk 0:01:07.4]} 22. Rf2
{[%clk 0:00:35.4]} 22... Rh5 {[%clk 0:01:07.5]} 23. d4 {[%clk 0:00:33.6]} 23...
Bg6 {[%clk 0:01:05.8]} 24. Rxh5 {[%clk 0:00:28.4]} 24... Rxh5 {[%clk 0:01:03.7]}
25. Be2 {[%clk 0:00:26.2]} 25... Rg5 {[%clk 0:00:59.5]} 26. Rf4 {[%clk
0:00:25.8]} 26... Bf5 {[%clk 0:00:58.3]} 27. Kf2 {[%clk 0:00:21.9]} 27... Kd6
{[%clk 0:00:58.1]} 28. Ke3 {[%clk 0:00:20.9]} 28... f6 {[%clk 0:00:47.5]} 29.
Bd3 {[%clk 0:00:16.8]} 29... Bxd3 {[%clk 0:00:45.4]} 30. Kxd3 {[%clk 0:00:17.7]}
30... f5 {[%clk 0:00:45.8]} 31. c4 {[%clk 0:00:16.9]} 31... c5 {[%clk
0:00:45.5]} 32. a3 {[%clk 0:00:12.4]} 32... Rh5 {[%clk 0:00:45.1]} 33. Rf2
{[%clk 0:00:11.7]} 33... cxd4 {[%clk 0:00:43.6]} 34. Kxd4 {[%clk 0:00:12.6]}
34... e5+ {[%clk 0:00:44.2]} 35. Kc3 {[%clk 0:00:10.6]} 35... Ke6 {[%clk
0:00:43.1]} 36. b4 {[%clk 0:00:09.5]} 36... Rh3 {[%clk 0:00:42.4]} 37. Kb2
{[%clk 0:00:03.2]} 37... e4 {[%clk 0:00:40.8]} 38. c5 {[%clk 0:00:02.3]} 38...
Ke5 {[%clk 0:00:40.8]} 0-1

[Event "*** Titled Tuesday Blitz"]
[Site "Chess.com"]
[Date "2021.03.02"]
[Round "1"]
[White "Klavdia_Nik"]
[Black "WPWPWP-2015"]
[Result "0-1"]
[WhiteElo "2067"]
[BlackElo "2499"]
[TimeControl "180+1"]
[EndTime "10:06:59 PST"]
[Termination "WPWPWP-2015 won on time"]

1. Nf3 {[%clk 0:02:14.1]} 1... Nf6 {[%clk 0:02:58.9]} 2. c4 {[%clk 0:02:13.1]}
2... c5 {[%clk 0:02:58.7]} 3. b3 {[%clk 0:02:09.4]} 3... b6 {[%clk 0:02:58.4]}
4. g3 {[%clk 0:02:05.8]} 4... Bb7 {[%clk 0:02:58.8]} 5. Bg2 {[%clk 0:02:06.2]}
5... e6 {[%clk 0:02:57.7]} 6. Bb2 {[%clk 0:02:06]} 6... Be7 {[%clk 0:02:57.7]}
7. O-O {[%clk 0:02:05.3]} 7... O-O {[%clk 0:02:57.3]} 8. d4 {[%clk 0:02:05.2]}
8... d6 {[%clk 0:02:57.2]} 9. Nc3 {[%clk 0:02:02.3]} 9... Nbd7 {[%clk
0:02:56.6]} 10. e3 {[%clk 0:01:43.4]} 10... a6 {[%clk 0:02:55.9]} 11. Re1 {[%clk
0:01:36.4]} 11... Rc8 {[%clk 0:02:54.4]} 12. e4 {[%clk 0:01:32.4]} 12... cxd4
{[%clk 0:02:48.4]} 13. Nxd4 {[%clk 0:01:29.6]} 13... Rc7 {[%clk 0:02:44.5]} 14.
Qd2 {[%clk 0:01:19.1]} 14... Qa8 {[%clk 0:02:42.9]} 15. Rad1 {[%clk 0:01:08.8]}
15... Rd8 {[%clk 0:02:41.3]} 16. h3 {[%clk 0:01:07.1]} 16... Nc5 {[%clk
0:02:40.6]} 17. Qe3 {[%clk 0:00:48.4]} 17... Ncd7 {[%clk 0:02:25.7]} 18. g4
{[%clk 0:00:19.6]} 18... Nf8 {[%clk 0:02:07.3]} 19. Nde2 {[%clk 0:00:18.6]}
19... N6d7 {[%clk 0:02:05.3]} 20. Ng3 {[%clk 0:00:17.5]} 20... Ng6 {[%clk
0:01:51.6]} 21. g5 {[%clk 0:00:16.3]} 21... Re8 {[%clk 0:01:26.4]} 22. Kh2
{[%clk 0:00:16.3]} 22... Qd8 {[%clk 0:01:15.9]} 23. f4 {[%clk 0:00:16.1]} 23...
f6 {[%clk 0:01:03.9]} 24. gxf6 {[%clk 0:00:15.4]} 24... Nxf6 {[%clk 0:01:01.3]}
25. Na4 {[%clk 0:00:14.3]} 25... b5 {[%clk 0:00:55.8]} 26. cxb5 {[%clk
0:00:06.6]} 26... axb5 {[%clk 0:00:56.7]} 27. Nc3 {[%clk 0:00:06.7]} 27... b4
{[%clk 0:00:56.6]} 28. Na4 {[%clk 0:00:06.6]} 28... Rc2 {[%clk 0:00:56.3]} 29.
Rd2 {[%clk 0:00:06.2]} 29... Qc7 {[%clk 0:00:54.9]} 30. Ree2 {[%clk 0:00:05.3]}
30... Rxd2 {[%clk 0:00:52.1]} 31. Rxd2 {[%clk 0:00:05.3]} 31... Bc6 {[%clk
0:00:45.4]} 32. f5 {[%clk 0:00:04.5]} 32... Ne5 {[%clk 0:00:44.1]} 33. fxe6
{[%clk 0:00:03.3]} 33... Bxa4 {[%clk 0:00:43.6]} 34. bxa4 {[%clk 0:00:02.3]}
34... Nc4 {[%clk 0:00:30.5]} 0-1

[Event "*** Titled Tuesday Blitz"]
[Site "Chess.com"]
[Date "2021.03.02"]
[Round "1"]
[White "anskam"]
[Black "grunbergmihai"]
[Result "0-1"]
[WhiteElo "1760"]
[BlackElo "2480"]
[TimeControl "180+1"]
[EndTime "10:07:01 PST"]
[Termination "grunbergmihai won on time"]

1. e4 {[%clk 0:03:00]} 1... e5 {[%clk 0:02:10.7]} 2. Nf3 {[%clk 0:02:58.1]} 2...
Nc6 {[%clk 0:02:09.5]} 3. Bb5 {[%clk 0:02:57.7]} 3... Nf6 {[%clk 0:02:09.1]} 4.
O-O {[%clk 0:02:56.2]} 4... Bc5 {[%clk 0:02:08.4]} 5. d3 {[%clk 0:02:54.7]} 5...
d6 {[%clk 0:02:06.5]} 6. c3 {[%clk 0:02:54.2]} 6... O-O {[%clk 0:02:05.6]} 7.
Bg5 {[%clk 0:02:52.9]} 7... Bg4 {[%clk 0:02:03.7]} 8. h3 {[%clk 0:02:51.4]} 8...
Bh5 {[%clk 0:02:03.5]} 9. g4 {[%clk 0:02:50.7]} 9... Bg6 {[%clk 0:02:02.8]} 10.
Re1 {[%clk 0:02:45.9]} 10... a6 {[%clk 0:01:56.6]} 11. Ba4 {[%clk 0:02:44.8]}
11... b5 {[%clk 0:01:56.4]} 12. Bc2 {[%clk 0:02:42.7]} 12... h6 {[%clk
0:01:56.3]} 13. Bh4 {[%clk 0:02:40.8]} 13... Bh7 {[%clk 0:01:56.3]} 14. a3
{[%clk 0:02:35.8]} 14... Bb6 {[%clk 0:01:56]} 15. d4 {[%clk 0:02:34.1]} 15...
exd4 {[%clk 0:01:54]} 16. cxd4 {[%clk 0:02:30.6]} 16... Re8 {[%clk 0:01:53.7]}
17. Nc3 {[%clk 0:02:25.1]} 17... g5 {[%clk 0:01:46.1]} 18. Bg3 {[%clk
0:02:18.6]} 18... Qd7 {[%clk 0:01:43.4]} 19. e5 {[%clk 0:02:15.5]} 19... dxe5
{[%clk 0:01:41]} 20. Bxh7+ {[%clk 0:02:09.6]} 20... Nxh7 {[%clk 0:01:39.2]} 21.
dxe5 {[%clk 0:02:07.3]} 21... Rad8 {[%clk 0:01:34.8]} 22. Qxd7 {[%clk
0:02:05.7]} 22... Rxd7 {[%clk 0:01:34.6]} 23. Ne4 {[%clk 0:01:57.4]} 23... Red8
{[%clk 0:01:28.9]} 24. Rac1 {[%clk 0:01:55.9]} 24... Nd4 {[%clk 0:01:27.9]} 25.
Nxd4 {[%clk 0:01:49.9]} 25... Bxd4 {[%clk 0:01:27.6]} 26. Rc2 {[%clk 0:01:40.3]}
26... Kg7 {[%clk 0:01:27.4]} 27. Rec1 {[%clk 0:01:36]} 27... Nf8 {[%clk
0:01:26.8]} 28. Rxc7 {[%clk 0:01:33.6]} 28... Bxb2 {[%clk 0:01:26.2]} 29. R1c2
{[%clk 0:01:28.1]} 29... Rxc7 {[%clk 0:01:22.9]} 30. Rxc7 {[%clk 0:01:26.5]}
30... Bxa3 {[%clk 0:01:22.8]} 31. Ra7 {[%clk 0:01:25.4]} 31... Ne6 {[%clk
0:01:03]} 32. Rxa6 {[%clk 0:01:16.2]} 32... Be7 {[%clk 0:01:01.7]} 33. Ra7
{[%clk 0:01:11.7]} 33... Kf8 {[%clk 0:01:01.3]} 34. Nf6 {[%clk 0:01:09.4]} 34...
b4 {[%clk 0:00:55.1]} 35. Rb7 {[%clk 0:01:06.2]} 35... Nd4 {[%clk 0:00:49.6]}
36. h4 {[%clk 0:00:39.6]} 36... gxh4 {[%clk 0:00:48.5]} 37. Bxh4 {[%clk
0:00:38.8]} 37... Nf3+ {[%clk 0:00:48.2]} 38. Kg2 {[%clk 0:00:17.2]} 38... Nxh4+
{[%clk 0:00:49.1]} 0-1